fUSD/lending_fUSD_20260115
["ID","MTS","AMOUNT","RATE_DAILY","PERIOD"]
[402082250,1768513850960,-500.0,0.00035616,10]
[402082251,1768513850970,-436.17307418,0.00035616,10]
[402082252,1768513850979,-857.05,0.00035616,10]
[402082253,1768513850988,-1211.11,0.00035616,10]
[402082254,1768513850998,-500.0,0.00035616,10]
[402082255,1768513851008,-1283.51,0.00035616,10]
[402082256,1768513851019,-763.88,0.00035616,10]
[402082257,1768513851028,-500.0,0.00035616,10]
[402082258,1768513851038,-505.46075951,0.00035616,10]
[402082259,1768513851048,-500.0,0.00035616,10]
[402082260,1768513851057,-1456.97,0.00035616,10]
[402082261,1768513851068,-1300.77,0.00035616,10]
[402082262,1768513851078,-500.0,0.00035616,10]
[402082263,1768513851087,-500.0,0.00035616,10]
[402082264,1768513851097,-500.0,0.00035616,10]
[402082265,1768513851106,-569.00454395,0.00035616,10]
[402082266,1768513851116,-500.0,0.00035616,10]
[402082267,1768513851126,-500.0,0.00035616,2]
[402082268,1768513851135,-1080.75,0.00035616,10]
[402082269,1768513851144,-500.0,0.00035616,10]
[402082270,1768513851153,-500.0,0.00035616,10]
[402082271,1768513851162,-500.0,0.00035616,10]
[402082272,1768513851171,-894.0,0.00035616,10]
[402082273,1768513851180,-824.11,0.00035616,10]
[402082274,1768513851190,-581.31662996,0.00035616,10]
[402082275,1768513851199,-151.0,0.00035616,3]
[402082276,1768513851208,-500.0,0.00035616,10]
[402082277,1768513851217,-729.21,0.00035616,10]
[402082278,1768513851226,-151.0,0.00035616,3]
[402082279,1768513851235,-500.0,0.00035616,10]
[402082280,1768513851244,-580.21,0.00035616,10]
[402082281,1768513851253,-151.0,0.00035616,3]
[402082282,1768513851262,-500.0,0.00035616,10]
[402082283,1768513851271,-866.46,0.00035616,10]
[402082284,1768513851280,-500.0,0.00035616,10]
[402082285,1768513851290,-500.0,0.00035616,10]
[402082286,1768513851299,-238.858399,0.00035616,10]
[402082287,1768513851308,-500.0,0.00035616,10]
[402082288,1768513851318,-1016.66,0.00035616,10]
[402082289,1768513851327,-905.86,0.00035616,10]
[402082290,1768513851558,-500.0,0.00035616,10]
[402082291,1768513851567,-2676.02,0.00035616,10]
[402082292,1768513851578,-500.0,0.00035616,10]
[402082293,1768513851587,-230.41576543,0.00035616,10]
[402082294,1768513851597,-632.3,0.00035616,10]
[402082295,1768513851606,-179.263514,0.00035616,10]
[402082296,1768513851615,-500.0,0.00035616,10]
[402082297,1768513851625,-762.56,0.00035616,10]
[402082298,1768513851634,-742.14,0.00035616,10]
[402082299,1768513851643,-639.07263536,0.00035616,10]
[402082300,1768513851653,-1012.73,0.00035616,10]
[402082301,1768513851662,-592.76,0.00035616,10]
[402082302,1768513851671,-500.0,0.00035616,10]
[402082303,1768513851682,-571.74551698,0.00035616,10]
[402082304,1768513851691,-2038.37,0.00035616,10]
[402082305,1768513851700,-626.76395244,0.00035616,10]
[402082306,1768513851710,-500.0,0.00035616,10]
[402082307,1768513851719,-500.0,0.00035616,10]
[402082308,1768513851729,-734.57,0.00035616,10]
[402082309,1768513851738,-557.15,0.00035616,10]
[402082310,1768513851748,-653.08,0.00035616,10]
[402082311,1768513851758,-500.0,0.00035616,10]
[402082312,1768513851767,-598.69,0.00035616,10]
[402082313,1768513851777,-500.0,0.00035616,10]
[402082314,1768513851787,-500.0,0.00035616,10]
[402082315,1768513851798,-547.18,0.00035616,10]
[402082316,1768513851807,-500.0,0.00035616,10]
[402082317,1768513851816,-500.0,0.00035616,10]
[402082318,1768513851826,-725.02,0.00035616,10]
[402082319,1768513851835,-500.0,0.00035616,10]
[402082320,1768513851845,-500.0,0.00035616,10]
[402082321,1768513851854,-160.040886,0.00035616,10]
[402082322,1768513851864,-500.0,0.00035616,10]
[402082323,1768513851873,-500.0,0.00035616,10]
[402082324,1768513851883,-156.652895,0.00035616,10]
[402082325,1768513851892,-500.0,0.00035616,10]
[402082326,1768513851901,-500.0,0.00035616,10]
[402082327,1768513851911,-500.0,0.00035616,10]
[402082328,1768513851920,-500.0,0.00035616,10]
[402082329,1768513851930,-154.767127,0.00035616,10]
[402082330,1768513851940,-500.0,0.00035616,10]
[402082331,1768513851949,-158.92510858,0.00035616,10]
[402082332,1768513851958,-500.0,0.00035616,10]
[402082333,1768513851967,-865.07,0.00035616,10]
[402082334,1768513851976,-699.44,0.00035616,10]
[402082335,1768513851990,-2000.78,0.00035616,10]
[402082336,1768513851999,-500.0,0.00035616,10]
[402082337,1768513852009,-807.24,0.00035616,10]
[402082338,1768513852019,-500.0,0.00035616,10]
[402082339,1768513852028,-636.16,0.00035616,10]
[402082340,1768513852039,-836.61,0.00035616,10]
[402082341,1768513852048,-905.94,0.00035616,10]
[402082342,1768513852057,-692.39,0.00035616,10]
[402082343,1768513852066,-1198.8,0.00035616,10]
[402082344,1768513852076,-557.57,0.00035616,10]
[402082345,1768513852087,-500.0,0.00035616,10]
[402082346,1768513852097,-500.0,0.00035616,10]
[402082347,1768513852106,-614.59286531,0.00035616,10]
[402082348,1768513852116,-598.86361782,0.00035616,10]
[402082349,1768513852125,-691.36,0.00035616,10]
[402082350,1768513852135,-500.0,0.00035616,10]
[402082351,1768513852144,-500.0,0.00035616,10]
[402082352,1768513852153,-622.3,0.00035616,10]
[402082353,1768513852162,-507.54396168,0.00035616,10]
[402082354,1768513852171,-586.18,0.00035616,10]
[402082355,1768513852180,-500.0,0.00035616,10]
[402082356,1768513852189,-1253.0,0.00035616,10]
[402082357,1768513852199,-716.04,0.00035616,10]
[402082358,1768513852207,-537.54,0.00035616,10]
[402082359,1768513852217,-576.53365318,0.00035616,10]
[402082360,1768513852226,-500.0,0.00035616,10]
[402082361,1768513852235,-743.12,0.00035616,10]
[402082362,1768513852245,-500.0,0.00035616,10]
[402082363,1768513852255,-500.0,0.00035616,10]
[402082364,1768513852265,-500.0,0.00035616,10]
[402082365,1768513852274,-567.79400386,0.00035616,10]
[402082366,1768513852284,-500.0,0.00035616,10]
[402082367,1768513852293,-500.0,0.00035616,10]
[402082368,1768513852302,-502.72,0.00035616,10]
[402082369,1768513852311,-1202.11,0.00035616,10]
[402082370,1768513852320,-575.86,0.00035616,10]
[402082371,1768513852330,-500.0,0.00035616,10]
[402082372,1768513852339,-500.0,0.00035616,10]
[402082373,1768513852348,-500.0,0.00035616,10]
[402082374,1768513852357,-921.12,0.00035616,10]
[402082375,1768513852367,-500.0,0.00035616,10]
[402082376,1768513852376,-500.0,0.00035616,10]
[402082377,1768513852386,-500.0,0.00035616,10]
[402082378,1768513852395,-365.37651882,0.00035616,10]
[402082379,1768513852404,-500.0,0.00035616,10]
[402082380,1768513852413,-1522.31,0.00035616,10]
[402082381,1768513852423,-678.15,0.00035616,10]
[402082382,1768513852432,-650.34,0.00035616,10]
[402082383,1768513852442,-473.83127415,0.00035616,10]
[402082384,1768513852451,-500.0,0.00035616,10]
[402082385,1768513852460,-533.97542719,0.00035616,10]
[402082386,1768513852470,-500.0,0.00035616,10]
[402082387,1768513852479,-500.0,0.00035616,10]
[402082388,1768513852488,-743.72,0.00035616,10]
[402082389,1768513852498,-714.0,0.00035616,10]
[402082390,1768513852507,-500.0,0.00035616,10]
[402082391,1768513852517,-871.38,0.00035616,10]
[402082392,1768513852526,-500.0,0.00035616,10]
[402082393,1768513852535,-500.0,0.00035616,10]
[402082394,1768513852544,-500.0,0.00035616,10]
[402082395,1768513852554,-753.53,0.00035616,10]
[402082396,1768513852564,-500.0,0.00035616,10]
[402082397,1768513852573,-500.0,0.00035616,10]
[402082398,1768513852583,-500.0,0.00035616,10]
[402082399,1768513852592,-588.18,0.00035616,10]
[402082400,1768513852601,-400.0,0.00035616,10]
[402082401,1768513852611,-415.29239669,0.00035616,10]
[402082402,1768513852619,-500.0,0.00035616,10]
[402082403,1768513852630,-500.0,0.00035616,10]
[402082404,1768513852639,-500.0,0.00035616,10]
[402082405,1768513852649,-617.57975743,0.00035616,10]
[402082406,1768513852658,-500.0,0.00035616,10]
[402082407,1768513852668,-500.0,0.00035616,10]
[402082408,1768513852677,-338.19041475,0.00035616,10]
[402082409,1768513852689,-500.0,0.00035616,10]
[402082410,1768513852699,-738.74,0.00035616,10]
[402082411,1768513852709,-500.0,0.00035616,10]
[402082412,1768513852719,-500.0,0.00035616,10]
[402082413,1768513852729,-500.0,0.00035616,10]
[402082414,1768513852738,-500.0,0.00035616,10]
[402082415,1768513852748,-410.61247741,0.00035616,10]
[402082416,1768513852759,-500.0,0.00035616,10]
[402082417,1768513852769,-1040.65,0.00035616,10]
[402082418,1768513852779,-500.0,0.00035616,10]
[402082419,1768513852807,-1470.18,0.00035616,10]
[402082420,1768513852816,-626.9,0.00035616,10]
[402082421,1768513852826,-500.0,0.00035616,10]
[402082422,1768513852835,-500.0,0.00035616,10]
[402082423,1768513852845,-500.0,0.00035616,10]
[402082424,1768513852854,-649.39,0.00035616,10]
[402082425,1768513852863,-1009.59,0.00035616,10]
[402082426,1768513852872,-500.0,0.00035616,10]
[402082427,1768513852881,-413.00236916,0.00035616,10]
[402082428,1768513852891,-570.52954411,0.00035616,10]
[402082429,1768513852900,-500.0,0.00035616,10]
[402082430,1768513852910,-500.0,0.00035616,10]
[402082431,1768513852919,-175.61510038,0.00035616,10]
[402082432,1768513852929,-500.0,0.00035616,10]
[402082433,1768513852938,-708.28,0.00035616,10]
[402082434,1768513852947,-558.30205555,0.00035616,10]
[402082435,1768513852957,-471.2917172,0.00035616,10]
[402082436,1768513852966,-718.49,0.00035616,10]
[402082437,1768513852975,-1043.99,0.00035616,10]
[402082438,1768513852984,-500.0,0.00035616,10]
[402082439,1768513852994,-500.0,0.00035616,10]
[402082440,1768513853003,-563.1835662,0.00035616,10]
[402082441,1768513853013,-555.43964879,0.00035616,10]
[402082442,1768513853022,-500.0,0.00035616,10]
[402082443,1768513853033,-526.68,0.00035616,10]
[402082444,1768513853042,-500.0,0.00035616,10]
[402082445,1768513853052,-500.0,0.00035616,10]
[402082446,1768513853061,-500.0,0.00035616,10]
[402082447,1768513853070,-1465.17,0.00035616,10]
[402082448,1768513853079,-1015.92,0.00035616,10]
[402082449,1768513853089,-500.0,0.00035616,10]
[402082450,1768513853101,-486.05163812,0.00035616,10]
[402082451,1768513853110,-500.0,0.00035616,10]
[402082452,1768513853119,-1275.92,0.00035616,10]
[402082453,1768513853129,-500.0,0.00035616,10]
[402082454,1768513853139,-1087.32,0.00035616,10]
[402082455,1768513853150,-500.0,0.00035616,10]
[402082456,1768513853159,-500.0,0.00035616,10]
[402082457,1768513853169,-500.0,0.00035616,10]
[402082458,1768513853178,-634.15,0.00035616,10]
[402082459,1768513853187,-500.0,0.00035616,10]
[402082460,1768513853197,-500.0,0.00035616,10]
[402082461,1768513853206,-500.0,0.00035616,10]
[402082462,1768513853216,-500.0,0.00035616,10]
[402082463,1768513853226,-500.0,0.00035616,10]
[402082464,1768513853235,-942.44,0.00035616,10]
[402082465,1768513853245,-1000.0,0.00035616,120]
[402082466,1768513853255,-1211.51,0.00035616,10]
[402082467,1768513853265,-1000.0,0.00035616,120]
[402082468,1768513853275,-1000.0,0.00035616,120]
[402082469,1768513853284,-1000.0,0.00035616,120]
[402082470,1768513853294,-500.0,0.00035616,10]
[402082471,1768513853304,-277.59094323,0.00035616,10]
[402082472,1768513853315,-575.07495134,0.00035616,10]
[402082473,1768513853324,-1059.51,0.00035616,10]
[402082474,1768513853335,-612.76782254,0.00035616,10]
[402082475,1768513853345,-1088.49,0.00035616,10]
[402082476,1768513853354,-500.0,0.00035616,10]
[402082477,1768513853364,-702.14,0.00035616,10]
[402082478,1768513853374,-500.0,0.00035616,10]
[402082479,1768513853383,-500.0,0.00035616,10]
[402082480,1768513853392,-500.0,0.00035616,10]
[402082481,1768513853402,-588.06,0.00035616,10]
[402082482,1768513853411,-406.12399864,0.00035616,10]
[402082483,1768513853421,-501.61,0.00035616,10]
[402082484,1768513853430,-577.53986698,0.00035616,10]
[402082485,1768513853439,-846.34,0.00035616,10]
[402082486,1768513853449,-170.87863228,0.00035616,10]
[402082487,1768513853458,-500.0,0.00035616,10]
[402082488,1768513853468,-500.0,0.00035616,10]
[402082489,1768513853486,-500.0,0.00035616,10]
[402082490,1768513853497,-4518.04,0.00035616,10]
[402082491,1768513853506,-847.21,0.00035616,10]
[402082492,1768513853516,-568.68224518,0.00035616,10]
[402082493,1768513853525,-538.55,0.00035616,10]
[402082494,1768513853535,-513.31,0.00035616,10]
[402082495,1768513853544,-607.07384723,0.00035616,10]
[402082496,1768513853553,-587.49902003,0.00035616,10]
[402082497,1768513853563,-606.34,0.00035616,10]
[402082498,1768513853572,-500.0,0.00035616,10]
[402082499,1768513853582,-945.75,0.00035616,10]
[402082500,1768513853592,-600.7060571,0.00035616,10]
[402082501,1768513853601,-500.0,0.00035616,10]
[402082502,1768513853611,-1468.54,0.00035616,10]
[402082503,1768513853620,-1202.59,0.00035616,10]
[402082504,1768513853630,-541.92,0.00035616,10]
[402082505,1768513853641,-500.0,0.00035616,10]
[402082506,1768513853651,-500.0,0.00035616,10]
[402082507,1768513853660,-1048.85,0.00035616,10]
[402082508,1768513853670,-543.33184567,0.00035616,10]
[402082509,1768513853683,-582.11,0.00035616,10]
[402082510,1768513853698,-500.0,0.00035616,10]
[402082511,1768513853708,-500.0,0.00035616,10]
[402082512,1768513853718,-500.0,0.00035616,10]
[402082513,1768513853728,-743.05,0.00035616,10]
[402082514,1768513853737,-918.66,0.00035616,10]
[402082515,1768513853747,-500.0,0.00035616,10]
[402082516,1768513853757,-500.0,0.00035616,10]
[402082517,1768513853766,-1483.36,0.00035616,10]
[402082518,1768513853776,-2008.28,0.00035616,10]
[402082519,1768513853785,-500.0,0.00035616,10]
[402082520,1768513853795,-1167.27,0.00035616,10]
[402082521,1768513853804,-1157.71,0.00035616,10]
[402082522,1768513853813,-500.0,0.00035616,10]
[402082523,1768513853822,-685.19,0.00035616,10]
[402082524,1768513853832,-151.0,0.00035616,31]
[402082525,1768513853841,-607.28753863,0.00035616,10]
[402082526,1768513853851,-500.0,0.00035616,10]
[402082527,1768513853860,-2071.29,0.00035616,10]
[402082528,1768513853870,-653.85,0.00035616,10]
[402082529,1768513853879,-500.0,0.00035616,10]
[402082530,1768513853888,-861.98,0.00035616,10]
[402082531,1768513853898,-702.89,0.00035616,10]
[402082532,1768513853907,-525.63,0.00035616,10]
[402082533,1768513853916,-576.52117514,0.00035616,10]
[402082534,1768513853925,-500.0,0.00035616,10]
[402082535,1768513853935,-562.67,0.00035616,10]
[402082536,1768513853944,-500.0,0.00035616,10]
[402082537,1768513853953,-500.0,0.00035616,10]
[402082538,1768513853963,-3116.71,0.00035616,10]
[402082539,1768513853973,-1580.5,0.00035616,10]
[402082540,1768513853982,-500.0,0.00035616,10]
[402082541,1768513853992,-500.0,0.00035616,10]
[402082542,1768513854002,-500.0,0.00035616,10]
[402082543,1768513854011,-557.58,0.00035616,10]
[402082544,1768513854021,-4184.9,0.00035616,10]
[402082545,1768513854040,-500.0,0.00035616,10]
[402082546,1768513854050,-500.0,0.00035616,10]
[402082547,1768513854060,-500.0,0.00035616,10]
[402082548,1768513854069,-619.00582618,0.00035616,10]
[402082549,1768513854079,-500.0,0.00035616,10]
[402082550,1768513854089,-500.0,0.00035616,10]
[402082551,1768513854099,-761.1,0.00035616,10]
[402082552,1768513854108,-694.04,0.00035616,10]
[402082553,1768513854118,-1412.3,0.00035616,10]
[402082554,1768513854127,-500.0,0.00035616,10]
[402082555,1768513854138,-500.0,0.00035616,10]
[402082556,1768513854147,-1788.19,0.00035616,10]
[402082557,1768513854156,-1973.9,0.00035616,10]
[402082558,1768513854166,-1138.8,0.00035616,10]
[402082559,1768513854175,-3522.45,0.00035616,10]
[402082560,1768513854184,-559.40972453,0.00035616,10]
[402082561,1768513854194,-500.0,0.00035616,10]
[402082562,1768513854203,-500.0,0.00035616,10]
[402082563,1768513854212,-1086.03,0.00035616,10]
[402082564,1768513854222,-502.11,0.00035616,10]
[402082565,1768513854231,-500.0,0.00035616,10]
[402082566,1768513854241,-986.02,0.00035616,10]
[402082567,1768513854250,-500.0,0.00035616,10]
[402082568,1768513854259,-500.0,0.00035616,10]
[402082569,1768513854269,-827.9,0.00035616,10]
[402082570,1768513854278,-500.0,0.00035616,10]
[402082571,1768513854288,-514.52188066,0.00035616,10]
[402082572,1768513854297,-500.0,0.00035616,10]
[402082573,1768513854307,-500.0,0.00035616,10]
[402082574,1768513854316,-500.0,0.00035616,10]
[402082575,1768513854326,-585.02071227,0.00035616,10]
[402082576,1768513854335,-962.76,0.00035616,10]
[402082577,1768513854345,-675.22,0.00035616,10]
[402082578,1768513854355,-1485.23,0.00035616,10]
[402082579,1768513854364,-400.0,0.00035616,10]
[402082580,1768513854374,-1322.41,0.00035616,10]
[402082581,1768513854383,-500.0,0.00035616,10]
[402082582,1768513854393,-1027.83,0.00035616,10]
[402082583,1768513854402,-738.59,0.00035616,10]
[402082584,1768513854411,-500.0,0.00035616,10]
[402082585,1768513854421,-1743.34,0.00035616,10]
[402082586,1768513854430,-851.00247986,0.00035616,10]
[402082587,1768513854439,-500.0,0.00035616,10]
[402082588,1768513854448,-500.0,0.00035616,10]
[402082589,1768513854457,-500.0,0.00035616,10]
[402082590,1768513854467,-562.36841649,0.00035616,10]
[402082591,1768513854477,-613.0,0.00035616,10]
[402082592,1768513854486,-966.05,0.00035616,10]
[402082593,1768513854495,-712.23,0.00035616,10]
[402082594,1768513854504,-761.0,0.00035616,10]
[402082595,1768513854514,-500.0,0.00035616,10]
[402082596,1768513854523,-500.0,0.00035616,10]
[402082597,1768513854532,-559.98,0.00035616,10]
[402082598,1768513854541,-500.0,0.00035616,10]
[402082599,1768513854550,-729.76,0.00035616,10]
[402082600,1768513854560,-500.0,0.00035616,10]
[402082601,1768513854569,-653.81,0.00035616,10]
[402082602,1768513854578,-500.0,0.00035616,10]
[402082603,1768513854587,-500.0,0.00035616,10]
[402082604,1768513854597,-500.0,0.00035616,10]
[402082605,1768513854606,-1101.43,0.00035616,10]
[402082606,1768513854615,-500.0,0.00035616,10]
[402082607,1768513854625,-500.0,0.00035616,10]
[402082608,1768513854634,-566.18,0.00035616,10]
[402082609,1768513854644,-500.0,0.00035616,10]
[402082610,1768513854653,-739.59,0.00035616,10]
[402082611,1768513854662,-500.0,0.00035616,10]
[402082612,1768513854672,-901.39,0.00035616,10]
[402082613,1768513854684,-500.0,0.00035616,10]
[402082614,1768513854694,-1497.85,0.00035616,10]
[402082615,1768513854703,-1605.6,0.00035616,10]
[402082616,1768513854712,-1159.01,0.00035616,10]
[402082617,1768513854723,-500.0,0.00035616,10]
[402082618,1768513854733,-500.0,0.00035616,10]
[402082619,1768513854742,-500.0,0.00035616,10]
[402082620,1768513854752,-500.0,0.00035616,10]
[402082621,1768513854762,-500.0,0.00035616,10]
[402082622,1768513854771,-609.16,0.00035616,10]
[402082623,1768513854780,-500.0,0.00035616,10]
[402082624,1768513854790,-500.0,0.00035616,10]
[402082625,1768513854799,-566.25229807,0.00035616,10]
[402082626,1768513854809,-1364.07081,0.00035616,68]
[402082627,1768513854819,-1364.07081,0.00035616,68]
[402082628,1768513854828,-500.0,0.00035616,10]
[402082629,1768513854837,-1364.07081,0.00035616,68]
[402082630,1768513854847,-1364.07081,0.00035616,68]
[402082631,1768513854856,-1364.0708,0.00035616,68]
[402082632,1768513854867,-1364.0708,0.00035616,68]
[402082633,1768513854876,-865.49,0.00035616,10]
[402082634,1768513854888,-500.0,0.00035616,10]
[402082635,1768513854898,-500.0,0.00035616,10]
[402082636,1768513854908,-500.0,0.00035616,10]
[402082637,1768513854919,-1165.4,0.00035616,10]
[402082638,1768513854929,-582.01975109,0.00035616,10]
[402082639,1768513854939,-1042.37,0.00035616,10]
[402082640,1768513854948,-1278.53,0.00035616,10]
[402082641,1768513854957,-500.0,0.00035616,10]
[402082642,1768513854966,-584.90957997,0.00035616,10]
[402082643,1768513854976,-500.0,0.00035616,10]
[402082644,1768513854985,-580.09,0.00035616,10]
[402082645,1768513854994,-500.0,0.00035616,10]
[402082646,1768513855003,-980.96,0.00035616,10]
[402082647,1768513855013,-500.0,0.00035616,10]
[402082648,1768513855022,-2202.62,0.00035616,10]
[402082649,1768513855031,-937.12,0.00035616,10]
[402082650,1768513855041,-500.0,0.00035616,10]
[402082651,1768513855050,-629.0,0.00035616,10]
[402082652,1768513855059,-500.0,0.00035616,10]
[402082653,1768513855068,-500.0,0.00035616,10]
[402082654,1768513855078,-500.0,0.00035616,10]
[402082655,1768513855087,-500.0,0.00035616,10]
[402082656,1768513855374,-1335.99,0.00035616,10]
[402082657,1768513855384,-500.0,0.00035616,10]
[402082658,1768513855394,-9874.86,0.00035616,10]
[402082659,1768513855404,-1346.7,0.00035616,10]
[402082660,1768513855414,-779.87,0.00035616,10]
[402082661,1768513855424,-1115.89,0.00035616,10]
[402082662,1768513855433,-500.0,0.00035616,10]
[402082663,1768513855443,-1515.69,0.00035616,10]
[402082664,1768513855452,-570.22,0.00035616,10]
[402082665,1768513855461,-547.55,0.00035616,10]
[402082666,1768513855471,-500.0,0.00035616,10]
[402082667,1768513855480,-514.62,0.00035616,10]
[402082668,1768513855489,-500.0,0.00035616,10]
[402082669,1768513855499,-674.92,0.00035616,10]
[402082670,1768513855508,-417.58877075,0.00035616,10]
[402082671,1768513855518,-500.0,0.00035616,10]
[402082672,1768513855527,-612.5214511,0.00035616,10]
[402082673,1768513855536,-500.0,0.00035616,10]
[402082674,1768513855545,-500.0,0.00035616,10]
[402082675,1768513855555,-583.77,0.00035616,10]
[402082676,1768513855564,-614.94,0.00035616,10]
[402082677,1768513855573,-500.0,0.00035616,10]
[402082678,1768513855582,-1791.48,0.00035616,10]
[402082679,1768513855591,-620.92,0.00035616,10]
[402082680,1768513855601,-500.0,0.00035616,10]
[402082681,1768513855610,-768.07,0.00035616,10]
[402082682,1768513855619,-643.34748755,0.00035616,10]
[402082683,1768513855629,-814.66,0.00035616,10]
[402082684,1768513855638,-500.0,0.00035616,10]
[402082685,1768513855647,-500.0,0.00035616,10]
[402082686,1768513855657,-500.0,0.00035616,10]
[402082687,1768513855666,-1000.0,0.00035616,120]
[402082688,1768513855675,-500.0,0.00035616,10]
[402082689,1768513855688,-500.0,0.00035616,10]
[402082690,1768513855697,-4131.54,0.00035616,10]
[402082691,1768513855707,-1415.05,0.00035616,10]
[402082692,1768513855716,-500.0,0.00035616,10]
[402082693,1768513855726,-500.0,0.00035616,10]
[402082694,1768513855735,-1000.0,0.00035616,120]
[402082695,1768513855744,-500.0,0.00035616,10]
[402082696,1768513855755,-827.82,0.00035616,10]
[402082697,1768513855764,-909.42,0.00035616,10]
[402082698,1768513855774,-500.0,0.00035616,10]
[402082699,1768513855783,-598.28607407,0.00035616,10]
[402082700,1768513855792,-500.0,0.00035616,10]
[402082701,1768513855802,-3018.12,0.00035616,10]
[402082702,1768513855811,-632.01805072,0.00035616,10]
[402082703,1768513855820,-500.0,0.00035616,10]
[402082704,1768513855829,-500.0,0.00035616,120]
[402082705,1768513855838,-559.73663643,0.00035616,10]
[402082706,1768513855847,-500.0,0.00035616,10]
[402082707,1768513855856,-500.0,0.00035616,10]
[402082708,1768513855865,-891.21,0.00035616,10]
[402082709,1768513855874,-500.0,0.00035616,10]
[402082710,1768513855883,-500.0,0.00035616,10]
[402082711,1768513855893,-523.87,0.00035616,10]
[402082712,1768513855902,-862.44,0.00035616,10]
[402082713,1768513855911,-1108.66,0.00035616,10]
[402082714,1768513855921,-500.0,0.00035616,10]
[402082715,1768513855930,-1387.43,0.00035616,10]
[402082716,1768513855939,-500.0,0.00035616,10]
[402082717,1768513855949,-736.64,0.00035616,10]
[402082718,1768513855960,-724.14,0.00035616,10]
[402082719,1768513855970,-514.97,0.00035616,10]
[402082720,1768513855979,-500.0,0.00035616,10]
[402082721,1768513855988,-500.0,0.00035616,10]
[402082722,1768513855997,-1250.69,0.00035616,10]
[402082723,1768513856006,-901.71,0.00035616,10]
[402082724,1768513856015,-1202.88,0.00035616,10]
[402082725,1768513856023,-151.0,0.00035616,31]
[402082726,1768513856032,-705.98,0.00035616,10]
[402082727,1768513856042,-500.0,0.00035616,10]
[402082728,1768513856050,-652.13,0.00035616,10]
[402082729,1768513856060,-500.85,0.00035616,10]
[402082730,1768513856069,-1019.17,0.00035616,10]
[402082731,1768513856078,-589.36724921,0.00035616,10]
[402082732,1768513856088,-705.61,0.00035616,10]
[402082733,1768513856098,-500.0,0.00035616,10]
[402082734,1768513856107,-500.0,0.00035616,10]
[402082735,1768513856116,-500.0,0.00035616,10]
[402082736,1768513856125,-704.19,0.00035616,10]
[402082737,1768513856134,-614.07,0.00035616,10]
[402082738,1768513856143,-682.44,0.00035616,10]
[402082739,1768513856152,-685.0,0.00035616,10]
[402082740,1768513856162,-2448.33,0.00035616,10]
[402082741,1768513856172,-1484.66,0.00035616,10]
[402082742,1768513856181,-1092.56,0.00035616,10]
[402082743,1768513856191,-500.0,0.00035616,10]
[402082744,1768513856200,-300.0,0.00035616,10]
[402082745,1768513856210,-963.46,0.00035616,10]
[402082746,1768513856220,-500.0,0.00035616,10]
[402082747,1768513856229,-500.0,0.00035616,10]
[402082748,1768513856238,-648.23,0.00035616,10]
[402082749,1768513856248,-578.10498113,0.00035616,10]